{"text_format":"1","workbook":"xlsx","n_sheets":3,"sheets":["EAF","Sheet1","Tips"],"not_rendered":{"charts":0,"images":0,"macros":1,"external_links":0,"defined_names":4,"comments":0,"pivot_tables":0},"unopened":[],"bounds":{"document_bytes":16777216,"sheet_cells":100000,"rows_first":2000,"rows_last":500,"rows_between":2000,"halvings":0,"cell_chars":16384,"cell_head_chars":4096},"cells_cut":0,"cells_raw":0,"read":"whole","date_system":"1900"}

{"sheet":"EAF","index":0,"n_rows":124,"n_cols":37,"rows_kept":124,"cut":false,"hidden":false,"merged":[[43,17,43,26],[10,11,10,16],[22,5,23,6],[14,6,14,9],[15,6,15,9],[14,3,14,5],[15,3,15,5],[13,11,18,16],[6,2,6,9],[9,2,9,9],[0,20,0,26],[1,0,1,26],[2,17,2,26],[3,17,3,26],[2,11,2,16],[4,20,4,26],[5,11,5,16],[2,0,2,9],[4,17,4,18],[3,2,3,9],[4,2,4,9],[3,11,4,14],[3,15,4,16],[5,2,5,9],[1,28,2,37],[6,20,6,26],[10,20,10,26],[11,20,11,26],[12,20,12,26],[13,20,13,26],[14,17,14,26],[29,23,29,26],[13,17,13,18],[20,0,20,26],[8,20,8,26],[8,17,8,18],[10,17,10,18],[9,17,9,18],[9,20,9,26],[5,20,5,26],[11,17,11,18],[12,17,12,18],[7,20,7,26],[7,17,7,18],[23,17,23,20],[29,14,29,15],[7,2,7,9],[5,17,5,18],[15,0,15,1],[14,0,14,1],[12,10,12,15],[30,14,30,15],[23,11,23,15],[24,11,24,15],[31,16,31,18],[36,10,36,13],[35,14,35,15],[31,8,31,9],[32,8,32,9],[33,8,33,9],[34,8,34,9],[35,8,35,9],[36,8,36,9],[12,2,12,9],[26,3,26,5],[36,14,36,15],[31,14,31,15],[32,14,32,15],[32,10,32,13],[31,10,31,13],[34,14,34,15],[17,0,18,2],[15,34,15,35],[16,3,16,9],[40,1,40,2],[40,11,40,13],[29,21,29,22],[30,23,30,26],[31,21,31,22],[31,23,31,26],[32,21,32,22],[30,16,30,18],[30,19,30,20],[37,21,37,22],[35,19,35,20],[39,10,39,13],[37,19,37,20],[39,19,39,20],[37,16,37,18],[39,16,39,18],[35,16,35,18],[35,23,35,26],[36,16,36,18],[36,23,36,26],[40,16,40,18],[40,23,40,26],[43,1,43,4],[44,1,44,4],[45,1,45,4],[41,0,41,4],[47,0,47,4],[48,0,48,4],[46,1,46,4],[30,8,30,9],[39,23,39,26],[34,21,34,22],[37,23,37,26],[35,21,35,22],[33,21,33,22],[36,21,36,22],[38,14,38,15],[40,14,40,15],[34,19,34,20],[36,19,36,20],[38,21,38,22],[38,23,38,26],[39,21,39,22],[33,14,33,15],[44,17,44,26],[45,17,45,26],[42,1,42,4],[29,8,29,9],[40,21,40,22],[34,16,34,18],[37,14,37,15],[39,14,39,15],[40,19,40,20],[35,10,35,13],[37,10,37,13],[32,16,32,18],[31,19,31,20],[33,10,33,13],[38,10,38,13],[33,19,33,20],[30,10,30,13],[38,19,38,20],[32,19,32,20],[29,10,29,13],[29,16,29,18],[29,19,29,20],[34,10,34,13],[33,16,33,18],[37,1,37,4],[38,1,38,4],[39,1,39,4],[16,17,18,26],[29,1,29,4],[30,1,30,4],[31,1,31,4],[32,1,32,4],[33,1,33,4],[34,1,34,4],[35,1,35,4],[38,16,38,18],[34,23,34,26],[33,23,33,26],[36,1,36,4],[30,21,30,22],[17,3,18,9],[16,0,16,1],[21,11,21,26],[24,17,24,20],[23,22,23,25],[24,22,24,25],[28,0,28,26],[21,0,21,9],[6,17,6,18],[47,17,47,26],[48,17,48,26],[41,22,41,23],[41,24,41,26],[48,11,48,16],[37,8,37,9],[38,8,38,9],[39,8,39,9],[15,17,15,22],[48,5,48,9],[46,17,46,26],[11,11,11,16],[27,3,27,5],[25,11,25,26],[22,11,22,16],[32,23,32,26],[8,2,8,9],[13,2,13,9],[6,11,6,15],[7,11,9,16]]}
["Mississippi State University",null,null,null,null,null,null,null,null,null,null,null,null,null,null,null,null,null,null,null,"Employment Action Form (EAF)"]
["The EAF is used for actions that affect payroll and/or the employee's Banner records.  The EAF precedes the requested action, and is completed by a designated employee in the department in which the action is taking place.  It should not be prepared by the person for whom the form has been initiated.  The EAF form must include signatures by those with authorization for the action taken.  Separate forms are required for Job Labor Redistribution, Request for Other University Employment Activity, or Summer Appointment Request."]
["Section I:  Employee Information\n (Yellow Highlighted Fields are Required Fields)",null,null,null,null,null,null,null,null,null,null,"Section II:  Transaction Information\n (Yellow Highlighted Fields are Required Fields)",null,null,null,null,null,"Section III:  Status Changes\n(Required Fields if Changes are Made in Section I)"]
["MSU ID No.:",null,null,null,null,null,null,null,null,null,null,"Effective Date of Action:",null,null,null,null,null,"List Appropriate Type of Change"]
["Name:",null,null,null,null,null,null,null,null,null,null,null,null,null,null,null,null,"Title",null,"From"]
[null,null,"(First, Middle, Last, Suffix)",null,null,null,null,null,null,null,null,"Select Type of Action",null,null,null,null,null,"Title",null,"To"]
["Current/New Title(s):",null,null,null,null,null,null,null,null,null,null,"Please Select",null,null,null,null,null,"Position No.",null,"From"]
["Current/New Title Code:",null,null,null,null,null,null,null,null,null,null,{"$f":"IF(ISNA(INDEX($AK$88:$AK$96,MATCH($L$7,$AI$88:$AI$96,0))),\"\",INDEX($AK$88:$AK$96,MATCH($L$7,$AI$88:$AI$96,0)))","v":""},null,null,null,null,null,"Position No.",null,"To",{"$f":"$A$31","v":0}]
["Home Org. Name:",null,null,null,null,null,null,null,null,null,null,null,null,null,null,null,null,"Pay",null,"From"]
["Home Org. Number:",null,null,null,null,null,null,null,null,null,null,null,null,null,null,null,null,"Pay",null,"To",{"$f":"G16","v":0}]
["Time Sheet Org. Name:",null,null,null,null,null,null,null,null,null,null,null,null,null,null,null,null,"FTE",null,"From"]
["Time Sheet Org. Number:",null,null,null,null,null,null,null,null,null,null,"Select Type of Appointment",null,null,null,null,null,"FTE",null,"To",{"$f":"C16","v":0}]
["Campus Mailstop:",null,null,null,null,null,null,null,null,null,"Please Select",null,null,null,null,null,null,"Other",null,"From"]
["Dept. Phys. Address:",null,null,null,null,null,null,null,null,null,null,{"$f":"IF(ISNA(INDEX($AK$98:$AK$103,MATCH($K$13,$AI$98:$AI$103,0))),\"\",INDEX($AK$98:$AK$103,MATCH($K$13,$AI$98:$AI$103,0)))","v":""},null,null,null,null,null,"Other",null,"To"]
["Select Employee Status",null,"FTE %","Select Type of Pay",null,null,"Employee Actual Salary",null,null,null,null,null,null,null,null,null,null,"Select Type of Separation"]
["Please Select",null,null,"Please Select",null,null,{"$f":"IF(D16=AI83,(C17*C16),IF(D16=AI82,0,C17))","v":0},null,null,null,null,null,null,null,null,null,null,"Please Select",null,null,null,null,null,null,null,null,null,null,null,null,null,null,null,null,{"$f":"IF(OR(D16=AI84,D16=AI85),AF17,\"\")","v":""}]
["Full-time Equivalent Annual Salary or Hourly Rate",null,null,{"$f":"IF(ISNA(INDEX($AK$83:$AK$85,MATCH($D$16,$AI$83:$AI$85,0))),\"\",INDEX($AK$83:$AK$85,MATCH($D$16,$AI$83:$AI$85,0)))","v":""},null,null,null,null,null,null,null,null,null,null,null,null,null,{"$f":"IF(ISNA(INDEX($AK$117:$AK$124,MATCH($R$16,$AI$117:$AI$124,0))),\"\",INDEX($AK$117:$AK$124,MATCH($R$16,$AI$117:$AI$124,0)))","v":""}]
[{"$f":"IF(ISNA(INDEX($AK$75:$AK$78,MATCH($A$16,$AI$75:$AI$78,0))),\"\",INDEX($AK$75:$AK$78,MATCH($A$16,$AI$75:$AI$78,0)))","v":""},null,null,"The \"Employee Actual Salary\" is the salary the employee will be paid based on the FTE percentage you have entered."]
[]
[]
["Section III:  Status Changes Continue"]
["Human Resources Management Use Only",null,null,null,null,null,null,null,null,null,null,"Select Type of Leave of Absence "]
[null,null,null,null,"☐","Leave without Pay",null,"☐","FMLA Covered",null,null,"Please Select:"]
["Separation Leave Payout/Transferring Leave:",null,null,null,null,null,null,"☐","FMLA Exhausted"]
[null,null,null,null,null,null,null,"☐","Military",null,null,"Beginning Date",null,null,null,null,null,"End Date",null,null,null,null,"Number of Hours"]
[null,null,null,null,null,null,null,"☐","Other",null,null,{"$f":"IF(ISNA(INDEX($AK$113:$AK$115,MATCH($L$23,$AI$113:$AI$115,0))),\"\",INDEX($AK$113:$AK$115,MATCH($L$23,$AI$113:$AI$115,0)))","v":""}]
[]
[null,null,null,"(Intermittent and Student Workers)"]
["Section IV:  Accounting Distribution\n (Required Fields)"]
["Position # & Suffix","Account Name",null,null,null,"Fund",null,null,"Org",null,"Program",null,null,null,"Activity",null,"Semi-monthly",null,null,"Annual Rate or Hourly Rate",null,"Accounting %",null,"Balance to be Paid (Optional)"]
[null,null,null,null,null,null,null,null,null,null,null,null,null,null,null,null,{"$f":"IF($A$16=$AI$75,T31/18,IF($A$16=$AI$77,T31/18,IF($A$16=$AI$76,T31/24,IF($A$16=$AI$78,T31/24))))","v":false},null,null,{"$f":"V31*G16","v":0}]
[null,null,null,null,null,null,null,null,null,null,null,null,null,null,null,null,{"$f":"IF($A$16=$AI$75,T32/18,IF($A$16=$AI$77,T32/18,IF($A$16=$AI$76,T32/24,IF($A$16=$AI$78,T32/24))))","v":false},null,null,{"$f":"V32*G16","v":0}]
[null,null,null,null,null,null,null,null,null,null,null,null,null,null,null,null,{"$f":"IF($A$16=$AI$75,T33/18,IF($A$16=$AI$77,T33/18,IF($A$16=$AI$76,T33/24,IF($A$16=$AI$78,T33/24))))","v":false},null,null,{"$f":"V33*G16","v":0}]
[null,null,null,null,null,null,null,null,null,null,null,null,null,null,null,null,{"$f":"IF($A$16=$AI$75,T34/18,IF($A$16=$AI$77,T34/18,IF($A$16=$AI$76,T34/24,IF($A$16=$AI$78,T34/24))))","v":false},null,null,{"$f":"V34*G16","v":0}]
[null,null,null,null,null,null,null,null,null,null,null,null,null,null,null,null,{"$f":"IF($A$16=$AI$75,T35/18,IF($A$16=$AI$77,T35/18,IF($A$16=$AI$76,T35/24,IF($A$16=$AI$78,T35/24))))","v":false},null,null,{"$f":"V35*G16","v":0}]
[null,null,null,null,null,null,null,null,null,null,null,null,null,null,null,null,{"$f":"IF($A$16=$AI$75,T36/18,IF($A$16=$AI$77,T36/18,IF($A$16=$AI$76,T36/24,IF($A$16=$AI$78,T36/24))))","v":false},null,null,{"$f":"V36*G16","v":0}]
[null,null,null,null,null,null,null,null,null,null,null,null,null,null,null,null,{"$f":"IF($A$16=$AI$75,T37/18,IF($A$16=$AI$77,T37/18,IF($A$16=$AI$76,T37/24,IF($A$16=$AI$78,T37/24))))","v":false},null,null,{"$f":"V37*G16","v":0}]
[null,null,null,null,null,null,null,null,null,null,null,null,null,null,null,null,{"$f":"IF($A$16=$AI$75,T38/18,IF($A$16=$AI$77,T38/18,IF($A$16=$AI$76,T38/24,IF($A$16=$AI$78,T38/24))))","v":false},null,null,{"$f":"V38*G16","v":0}]
[null,null,null,null,null,null,null,null,null,null,null,null,null,null,null,null,{"$f":"IF($A$16=$AI$75,T39/18,IF($A$16=$AI$77,T39/18,IF($A$16=$AI$76,T39/24,IF($A$16=$AI$78,T39/24))))","v":false},null,null,{"$f":"V39*G16","v":0}]
[null,null,null,null,null,null,null,null,null,null,null,null,null,null,null,null,{"$f":"IF($A$16=$AI$75,T40/18,IF($A$16=$AI$77,T40/18,IF($A$16=$AI$76,T40/24,IF($A$16=$AI$78,T40/24))))","v":false},null,null,{"$f":"V40*G16","v":0}]
[null,null,null,null,null,null,null,null,null,null,null,null,null,null,"Totals",null,{"$f":"SUM(Q31:S40)","v":0},null,null,{"$f":"SUM(T31:U40)","v":0},null,{"$f":"SUM(V31:W40)","v":0},null,{"$f":"SUM(X31:AA40)","v":0}]
["Prepared By:",null,null,null,null,null,null,null,null,null,null,null,null,null,null,null,null,"Employee Contract Required",null,null,null,null,"Please Select",null,"Select for Contract Form"]
["Name:",null,null,null,null,null,null,null,null,null,null,null,null,null,null,null,null,"Approval Signature and Title:",null,null,null,null,null,"Date:"]
["Phone:"]
["Email Address:"]
["Mail Stop"]
[]
["Select for Required Paperwork by Type of Hire"]
["Select for Payroll Dates",null,null,null,null,"Human Resources Management Use Only",null,null,null,null,null,"Budget/Payroll Use Only",null,null,null,null,null,"HRM - Revised 5/26"]
[]
[]
[]
[]
[]
[null,null,null,"Please Select"]
[null,null,null,"√  Yes"]
[null,null,null,"√  No"]
[null,null,null,"Please Select"]
[null,null,null,"√  Exempt"]
[null,null,null,"√  Non-Exempt"]
[]
[null,null,null,"√  Non-Tenure Track"]
[null,null,null,"√  Tenure Track"]
[null,null,null,"√  Tenured"]
[]
[]
[]
[]
[]
[]
[]
[]
[]
[null,null,null,null,null,null,null,null,null,null,null,null,null,null,null,null,null,null,null,null,null,null,null,null,null,null,null,null,null,null,null,null,null,null,"Please Select"]
[null,null,null,null,null,null,null,null,null,null,null,null,null,null,null,null,null,null,null,null,null,null,null,null,null,null,null,null,null,null,null,null,null,null,"√  Full-time 9-Month",null,"The employee has been hired to work 100% of the work week, even though they do not work three months of the year."]
[null,null,null,null,null,null,null,null,null,null,null,null,null,null,null,null,null,null,null,null,null,null,null,null,null,null,null,null,null,null,null,null,null,null,"√  Full-time 12-Month",null,"The employee has been hired to work the equivalent of a 40-hour work week and will work a 12-month year."]
[null,null,null,null,null,null,null,null,null,null,null,null,null,null,null,null,null,null,null,null,null,null,null,null,null,null,null,null,null,null,null,null,null,null,"√  Part-time 9-Month",null,"The employee is scheduled to work less than 100% of a 40-hour work week.  List the exact percentage of the work week for which the employee has been hired."]
[null,null,null,null,null,null,null,null,null,null,null,null,null,null,null,null,null,null,null,null,null,null,null,null,null,null,null,null,null,null,null,null,null,null,"√  Part-time 12-Month",null,"The employee is scheduled to work less than 100% of a 40-hour work week.  List the exact percentage of the work week for which the employee has been hired."]
[]
[]
[]
[null,null,null,null,null,null,null,null,null,null,null,null,null,null,null,null,null,null,null,null,null,null,null,null,null,null,null,null,null,null,null,null,null,null,"Please Select"]
[null,null,null,null,null,null,null,null,null,null,null,null,null,null,null,null,null,null,null,null,null,null,null,null,null,null,null,null,null,null,null,null,null,null,"√  Annually",null,"Annual salary for regular employees and Graduate Assistants."]
[null,null,null,null,null,null,null,null,null,null,null,null,null,null,null,null,null,null,null,null,null,null,null,null,null,null,null,null,null,null,null,null,null,null,"√  Per Hour",null,"Hourly rate for Intermittent and student workers."]
[null,null,null,null,null,null,null,null,null,null,null,null,null,null,null,null,null,null,null,null,null,null,null,null,null,null,null,null,null,null,null,null,null,null,"√  Lump Sum",null,"Single large payment made all at once, in lieu of several smaller payments made at regular or infrequent intervals."]
[]
[null,null,null,null,null,null,null,null,null,null,null,null,null,null,null,null,null,null,null,null,null,null,null,null,null,null,null,null,null,null,null,null,null,null,"Please Select"]
[null,null,null,null,null,null,null,null,null,null,null,null,null,null,null,null,null,null,null,null,null,null,null,null,null,null,null,null,null,null,null,null,null,null,"√  New Hire",null,"Employee’s first appointment to any department or unit at Mississippi State University."]
[null,null,null,null,null,null,null,null,null,null,null,null,null,null,null,null,null,null,null,null,null,null,null,null,null,null,null,null,null,null,null,null,null,null,"√  Reappointment/Extended Appointment",null,"Continuing employment or extending the same position for an additional period."]
[null,null,null,null,null,null,null,null,null,null,null,null,null,null,null,null,null,null,null,null,null,null,null,null,null,null,null,null,null,null,null,null,null,null,"√  Rehire",null,"Previously employed by Mississippi State University, but there has been a break in employment."]
[null,null,null,null,null,null,null,null,null,null,null,null,null,null,null,null,null,null,null,null,null,null,null,null,null,null,null,null,null,null,null,null,null,null,"√  Return from Leave",null,"Place an employee back on payroll that has been out for a sabbatical or long-term leave of absence."]
[null,null,null,null,null,null,null,null,null,null,null,null,null,null,null,null,null,null,null,null,null,null,null,null,null,null,null,null,null,null,null,null,null,null,"√  Sabbatical Leave (Full Pay)",null,"A faculty member who will be on sabbatical leave for one semester at full pay."]
[null,null,null,null,null,null,null,null,null,null,null,null,null,null,null,null,null,null,null,null,null,null,null,null,null,null,null,null,null,null,null,null,null,null,"√  Sabbatical Leave (Partial Pay)",null,"A faculty member who will be on sabbatical leave for two semesters at half pay."]
[null,null,null,null,null,null,null,null,null,null,null,null,null,null,null,null,null,null,null,null,null,null,null,null,null,null,null,null,null,null,null,null,null,null,"√  Status Change",null,"The EAF is being completed to make a Status Change to Section III."]
[null,null,null,null,null,null,null,null,null,null,null,null,null,null,null,null,null,null,null,null,null,null,null,null,null,null,null,null,null,null,null,null,null,null,"√  Transfer from Another Department",null,"The employee is transferring from another department or unit at Mississippi State University without a break in their employment."]
[null,null,null,null,null,null,null,null,null,null,null,null,null,null,null,null,null,null,null,null,null,null,null,null,null,null,null,null,null,null,null,null,null,null,"√  Transfer from Other State Agency",null,"Transferred from another Mississippi state agency or public school. Enter the agency or school name below."]
[null,null,null,null,null,null,null,null,null,null,null,null,null,null,null,null,null,null,null,null,null,null,null,null,null,null,null,null,null,null,null,null,null,null,"Please Select"]
[null,null,null,null,null,null,null,null,null,null,null,null,null,null,null,null,null,null,null,null,null,null,null,null,null,null,null,null,null,null,null,null,null,null,"√  Faculty"]
[null,null,null,null,null,null,null,null,null,null,null,null,null,null,null,null,null,null,null,null,null,null,null,null,null,null,null,null,null,null,null,null,null,null,"√  Graduate Assistant",null,"The employee has been granted a graduate research, teaching, or service assistantship.  The Graduate School must sign all EAF's on graduate students."]
[null,null,null,null,null,null,null,null,null,null,null,null,null,null,null,null,null,null,null,null,null,null,null,null,null,null,null,null,null,null,null,null,null,null,"√  Intermittent",null,"The employee is scheduled to work less than four and one-half months (no more than 720 hours per fiscal year).  This includes temporary employment."]
[null,null,null,null,null,null,null,null,null,null,null,null,null,null,null,null,null,null,null,null,null,null,null,null,null,null,null,null,null,null,null,null,null,null,"√  Regular",null,"The employee is scheduled to work more than four and one-half months."]
[null,null,null,null,null,null,null,null,null,null,null,null,null,null,null,null,null,null,null,null,null,null,null,null,null,null,null,null,null,null,null,null,null,null,"√  Retiree",null,"The employee has retired from MSU or another state agency."]
[null,null,null,null,null,null,null,null,null,null,null,null,null,null,null,null,null,null,null,null,null,null,null,null,null,null,null,null,null,null,null,null,null,null,"√  Student Worker",null,"The employee's work assignment is secondary to their pursuit of academic goals or objectives and who is enrolled as an undergraduate student of Mississippi State University.  (A high school student who has not yet enrolled at MSU can be hired as an intermittent employee, but not as a student worker.)"]
[null,null,null,null,null,null,null,null,null,null,null,null,null,null,null,null,null,null,null,null,null,null,null,null,null,null,null,null,null,null,null,null,null,null,"From",null,"Change occurring from previous status."]
[null,null,null,null,null,null,null,null,null,null,null,null,null,null,null,null,null,null,null,null,null,null,null,null,null,null,null,null,null,null,null,null,null,null,"To",null,"Change occurring to current status."]
[null,null,null,null,null,null,null,null,null,null,null,null,null,null,null,null,null,null,null,null,null,null,null,null,null,null,null,null,null,null,null,null,null,null,"Please Select"]
[null,null,null,null,null,null,null,null,null,null,null,null,null,null,null,null,null,null,null,null,null,null,null,null,null,null,null,null,null,null,null,null,null,null,"FTE",null,"The employee's FTE is changing, list old and new FTE rates in \"From\" and \"To\" fields."]
[null,null,null,null,null,null,null,null,null,null,null,null,null,null,null,null,null,null,null,null,null,null,null,null,null,null,null,null,null,null,null,null,null,null,"Other",null,"Any miscellaneous changes in employment status."]
[null,null,null,null,null,null,null,null,null,null,null,null,null,null,null,null,null,null,null,null,null,null,null,null,null,null,null,null,null,null,null,null,null,null,"Pay",null,"The employee's rate of  pay is changing, list old and new pay amount in \"From\" and \"To\" fields."]
[null,null,null,null,null,null,null,null,null,null,null,null,null,null,null,null,null,null,null,null,null,null,null,null,null,null,null,null,null,null,null,null,null,null,"Position No.",null,"The employee's position number is changing, list old and new position number in \"From\" and \"To\" fields."]
[null,null,null,null,null,null,null,null,null,null,null,null,null,null,null,null,null,null,null,null,null,null,null,null,null,null,null,null,null,null,null,null,null,null,"Title",null,"The employee's title is changing, list old and new titles in \"From\" and \"To\" fields."]
[null,null,null,null,null,null,null,null,null,null,null,null,null,null,null,null,null,null,null,null,null,null,null,null,null,null,null,null,null,null,null,null,null,null,"Please Select"]
[null,null,null,null,null,null,null,null,null,null,null,null,null,null,null,null,null,null,null,null,null,null,null,null,null,null,null,null,null,null,null,null,null,null,"√  FMLA Leave",null,"FMLA (Family and Medical Leave Act) provides up to 12 weeks of job-protected leave per fiscal year with required documentation.   Please refer to Family and Medical Leave policy on the Human Resources Management website for additional information."]
[null,null,null,null,null,null,null,null,null,null,null,null,null,null,null,null,null,null,null,null,null,null,null,null,null,null,null,null,null,null,null,null,null,null,"√  Long-Term Leave of Absence (Without Pay)",null,"The employee will be on an extended leave of absence without pay and no payroll check will be issued for more than one pay period.  An EAF marked Return from Leave (Transaction Information in Section II) is required to place the employee back on active payroll status."]
[null,null,null,null,null,null,null,null,null,null,null,null,null,null,null,null,null,null,null,null,null,null,null,null,null,null,null,null,null,null,null,null,null,null,"√  Short-Term Leave of Absence (Without Pay)",null,"An exempt employee will be on leave without pay for one or less pay periods.  Record the Beginning Date and Ending Date and complete the number of hours used.  Note:  and EAF is not required for a short-term leave of absence for a non-exempt employee.  The employee completes an Application for Leave of Absence Without Pay for the number of hours they are absent.  The department uses the earn code DOC to reduce the employee's pay for the current pay period by the number of hours taken as leave without pay."]
[null,null,null,null,null,null,null,null,null,null,null,null,null,null,null,null,null,null,null,null,null,null,null,null,null,null,null,null,null,null,null,null,null,null,"Please Select"]
[null,null,null,null,null,null,null,null,null,null,null,null,null,null,null,null,null,null,null,null,null,null,null,null,null,null,null,null,null,null,null,null,null,null,"√  Death",null,"Remove a deceased employee from payroll.  The actual date of death will be your \"Effective Date of Action\"."]
[null,null,null,null,null,null,null,null,null,null,null,null,null,null,null,null,null,null,null,null,null,null,null,null,null,null,null,null,null,null,null,null,null,null,"√  End of Appointment",null,"The period for which the employee was hired has reached an end.  Examples would include graduate teaching assistants, students, and lecturers."]
[null,null,null,null,null,null,null,null,null,null,null,null,null,null,null,null,null,null,null,null,null,null,null,null,null,null,null,null,null,null,null,null,null,null,"√  Involuntary Separation",null,"The university terminates the employment of the individual."]
[null,null,null,null,null,null,null,null,null,null,null,null,null,null,null,null,null,null,null,null,null,null,null,null,null,null,null,null,null,null,null,null,null,null,"√  Position Discontinued",null,"The position is discontinued due to elimination or reduction of funding."]
[null,null,null,null,null,null,null,null,null,null,null,null,null,null,null,null,null,null,null,null,null,null,null,null,null,null,null,null,null,null,null,null,null,null,"√  Resignation",null,"The employee has resigned from Mississippi State University and is no longer an employee of the university."]
[null,null,null,null,null,null,null,null,null,null,null,null,null,null,null,null,null,null,null,null,null,null,null,null,null,null,null,null,null,null,null,null,null,null,"√  Retirement",null,"If the employee is retiring."]
[null,null,null,null,null,null,null,null,null,null,null,null,null,null,null,null,null,null,null,null,null,null,null,null,null,null,null,null,null,null,null,null,null,null,"√  Transferring to Another Department",null,"The employee is transferring to another department or unit at Mississippi State University."]
[null,null,null,null,null,null,null,null,null,null,null,null,null,null,null,null,null,null,null,null,null,null,null,null,null,null,null,null,null,null,null,null,null,null,"√  Voluntarily Quit/Ineligible for Rehire",null,"The employee resigned voluntarily but ineligible for rehire."]

{"sheet":"Sheet1","index":1,"n_rows":4,"n_cols":1,"rows_kept":4,"cut":false,"hidden":true,"merged":[]}
["Please Select:"]
["LWOP - Personal"]
["LWOP - Medical"]
["LWOP - Disciplinary"]

{"sheet":"Tips","index":2,"n_rows":26,"n_cols":1,"rows_kept":26,"cut":false,"hidden":false,"merged":[]}
["EMPLOYEE ACTION FORM (EAF)"]
["TIPS"]
[]
[]
["The Employment Action Form is used for any personnel actions that affect payroll and/or the employee’s Banner records.  All fields within the form that are highlighted in yellow must be completed before the form is sent to the Department of Human Resources Management for processing.  A delay may occur in processing if all the required fields are not completed at the time Human Resources Management receives the form.  "]
[]
["It is critical all departments submit the EAF to the Department of Human Resources Management, per the dates provided on the Payroll Schedule."]
[]
["·        FTE %"]
["o   100% must be entered as the FTE % for full-time employees"]
["o   Other percentages (example:  25%) must be entered for part-time employees"]
[]
["·        Full-time Equivalent Annual Salary or Hourly Rate"]
["o   Used to calculate an employee’s actual salary based on the FTE percentage."]
["o   Hourly Rate should be entered for intermittent, hourly retirees, and student workers"]
[]
["·        Type of Pay"]
["o   Determines if the employee is paid annually, hourly, or in a lump sum."]
[]
["·        Employee Actual Salary"]
["o   This field is calculated based on the Full-time Equivalent Annual Salary or Hourly amount and the FTE%.  This will be the amount keyed into Banner as the employee’s salary.  "]
["o   For Example:  FTE% = 50%, Full-time Equivalent Annual Salary or Hourly = $50,000, the Employee Actual Salary will calculate as $25,000."]
[]
["·        Accounting %"]
["o   Percentage of the employee’s funding (pay) based on the accounting distribution.  This total should always equal 100%.  "]
["§  Percent by fund should be entered into these fields to calculate the “Annual Rate” and “Semi-monthly” pay.  The total fields will be highlighted in red if the Account percentage does not equal to 100%, and the “Annual Rate” total does not match the ”Employee Actual Salary”."]